fUSD/lending_fUSD_20240127
["ID","MTS","AMOUNT","RATE_DAILY","PERIOD"]
[312866709,1706380149150,252.45,0.00022436,2]
[312866710,1706380149378,252.45,0.00022496,2]
[312866711,1706380159895,193.91,0.00021836,2]
[312866718,1706380231415,-1553.06,0.00022508,2]
[312866719,1706380231470,-926.98239229,0.00022508,2]
[312866720,1706380231480,-160.16425758,0.00022509,2]
[312866721,1706380231489,-483.97784617,0.00022548,2]
[312866722,1706380231498,-150.0,0.00022548,2]
[312866723,1706380231507,-252.45,0.00022556,2]
[312866724,1706380231517,-160.16425758,0.0002257,2]
[312866725,1706380231527,-252.45,0.00022617,2]
[312866726,1706380231536,-160.16425758,0.00022631,2]
[312866727,1706380231546,-155.3355389,0.00022668,2]
[312866728,1706380231555,-150.99,0.00022675,2]
[312866729,1706380231564,-252.45,0.00022677,2]
[312866730,1706380231573,-160.16425758,0.00022692,2]
[312866731,1706380231583,-252.45,0.00022738,2]
[312866732,1706380231592,-160.16425758,0.00022752,2]
[312866733,1706380231601,-176.61,0.00022765,2]
[312866734,1706380231610,-1260.76028766,0.00022768,5]
[312866735,1706380231622,-289.68498057,0.00022768,2]
[312866736,1706380231635,-368.01711577,0.00022768,2]
[312866737,1706380231647,-10759.62790366,0.00022768,2]
[312866738,1706380231657,-499.99,0.00022768,2]
[312866739,1706380231666,-252.45,0.00022798,2]
[312866740,1706380231675,-189.10579447,0.00022798,2]
[312866741,1706380231684,-254.86712904,0.00022798,2]
[312866742,1706380231694,-220.19602869,0.00022799,2]
[312866743,1706380231703,-220.19602869,0.000228,2]
[312866744,1706380231712,-160.16425758,0.00022813,2]
[312866745,1706380231721,-252.45,0.00022858,2]
[312866746,1706380231730,-160.16425758,0.00022874,2]
[312866747,1706380231739,-194.4155184,0.00022888,2]
[312866748,1706380231749,-186.57838311,0.00022897,2]
[312866749,1706380231758,-236.84590808,0.00022897,2]
[312866750,1706380231767,-2811.24952916,0.00022898,2]
[312866751,1706380231779,-1035239.61032045,0.00022898,2]
[312866752,1706380231791,-209.65463729,0.00022898,2]
[312866753,1706380231800,-500.0,0.00022898,2]
[312866754,1706380231809,-500.0,0.00022898,2]
[312866755,1706380231818,-500.0,0.00022898,2]
[312866756,1706380231828,-500.0,0.00022898,2]
[312866757,1706380231837,-500.0,0.00022898,2]
[312866758,1706380231847,-500.0,0.00022898,2]
[312866759,1706380231856,-475.7369799,0.00022898,2]
[312866760,1706380231866,-500.0,0.00022898,2]
[312866761,1706380231875,-500.0,0.00022898,2]
[312866762,1706380231884,-8559.5939,0.00022899,2]
[312866763,1706380231894,-1576.5948,0.00022899,2]
[312866764,1706380231904,-212451.3711,0.00022899,2]
[312866765,1706380231913,-2600.92528792,0.000229,2]
[312866766,1706380231922,-157.77789167,0.000229,2]
[312866767,1706380231931,-252.45,0.00022919,2]
[312866768,1706380231940,-160.16425758,0.00022935,2]
[312866769,1706380231949,-203.11297958,0.00022939,2]
[312866770,1706380231958,-207.22768446,0.00022939,2]
[312866771,1706380231968,-194.58103892,0.00022939,2]
[312866772,1706380231977,-814.27224321,0.00022939,2]
[312866773,1706380231986,-447.83041407,0.00022939,2]
[312866774,1706380231995,-252.45,0.00022979,2]
[312866775,1706380232004,-23280.95892432,0.00022996,2]
[312866776,1706380232013,-1578.72,0.00022996,2]
[312866777,1706380232023,-160.16425758,0.00022996,2]
[312866778,1706380232035,-552.91961419,0.00022996,2]
[312866779,1706380232044,-265.85689275,0.00022997,2]
[312866780,1706380232054,-221.40319185,0.00022997,2]
[312866781,1706380232064,-155.5829663,0.00022997,2]
[312866782,1706380232074,-155.0,0.00022997,2]
[312866783,1706380232083,-155.15922873,0.00022997,2]
[312866784,1706380232092,-155.17734131,0.00022997,2]
[312866785,1706380232101,-155.36341877,0.00022997,2]
[312866786,1706380232110,-155.0,0.00022997,2]
[312866787,1706380232119,-582.84742818,0.00022997,2]
[312866788,1706380232129,-155.0,0.00022997,2]
[312866789,1706380232138,-2303.11339718,0.00022998,2]
[312866790,1706380232147,-155.12126467,0.00022998,2]
[312866791,1706380232156,-366.02277432,0.00022998,2]
[312866792,1706380232165,-285.66659166,0.00022998,2]
[312866793,1706380232175,-155.2150746,0.00022998,2]
[312866794,1706380232184,-172.09680919,0.00022998,2]
[312866795,1706380232193,-698.8735926,0.00022998,2]
[312866796,1706380232203,-939.25271979,0.00022998,2]
[312866797,1706380232212,-183.60060641,0.00022998,2]
[312866798,1706380232221,-157.79760794,0.00022998,2]
[312866799,1706380232229,-235.08217382,0.00022998,2]
[312866800,1706380232239,-1054.70151802,0.00022998,2]
[312866801,1706380232249,-292.8513192,0.00022998,2]
[312866802,1706380232261,-155.0,0.00022998,2]
[312866803,1706380232270,-2136.71947033,0.00022998,2]
[312866804,1706380232280,-497.9111912,0.00022998,2]
[312866805,1706380232292,-230.76633215,0.00022998,2]
[312866806,1706380232301,-306.11469835,0.00022998,2]
[312866807,1706380232310,-375.75908002,0.00022998,2]
[312866808,1706380232320,-226.33776838,0.00022998,2]
[312866809,1706380232329,-155.0,0.00022998,2]
[312866810,1706380232338,-566.66190132,0.00022998,2]
[312866811,1706380232348,-487.24115174,0.00022998,2]
[312866812,1706380232357,-176.55976016,0.00022998,2]
[312866813,1706380232366,-155.60727124,0.00022998,2]
[312866814,1706380232375,-204.27170755,0.00022998,2]
[312866815,1706380232384,-218.2736471,0.00022998,2]
[312866816,1706380232394,-155.44690055,0.00022998,2]
[312866817,1706380232403,-155.0,0.00022998,2]
[312866818,1706380232413,-155.0,0.00022998,2]
[312866819,1706380232423,-155.50216158,0.00022998,2]
[312866820,1706380232432,-155.26927508,0.00022998,2]
[312866821,1706380232441,-348.06286348,0.00022998,2]
[312866822,1706380232451,-155.0,0.00022998,2]
[312866823,1706380232460,-521.65923347,0.00022998,2]
[312866824,1706380232469,-155.0,0.00022998,2]
[312866825,1706380232479,-414.1012816,0.00022998,2]
[312866826,1706380232489,-199.52500903,0.00022998,2]
[312866827,1706380232498,-355.01316218,0.00022998,2]
[312866828,1706380232508,-162.65321079,0.00022998,2]
[312866829,1706380232517,-155.0,0.00022998,2]
[312866830,1706380232527,-155.22518167,0.00022998,2]
[312866831,1706380232537,-310.6035145,0.00022998,2]
[312866832,1706380232546,-418.21791161,0.00022998,2]
[312866833,1706380232555,-167.96801762,0.00022998,2]
[312866834,1706380232567,-238.49764122,0.00022998,2]
[312866835,1706380232576,-1178.12872526,0.00022998,2]
[312866836,1706380232585,-155.38396333,0.00022998,2]
[312866837,1706380232594,-207.78272895,0.00022998,2]
[312866838,1706380232604,-304.45979647,0.00022998,2]
[312866839,1706380232614,-246.78899767,0.00022998,2]
[312866840,1706380232623,-165.07307558,0.00022998,2]
[312866841,1706380232632,-155.49191532,0.00022998,2]
[312866842,1706380232642,-197.13116572,0.00022998,2]
[312866843,1706380232652,-155.0,0.00022998,2]
[312866844,1706380232661,-524.30007126,0.00022998,2]
[312866845,1706380232671,-314.71110376,0.00022998,2]
[312866846,1706380232681,-250.66764355,0.00022998,2]
[312866847,1706380232691,-160.88730639,0.00022998,2]
[312866848,1706380232700,-155.25147116,0.00022998,2]
[312866849,1706380232710,-371.72065286,0.00022998,2]
[312866850,1706380232719,-155.0,0.00022998,2]
[312866851,1706380232729,-155.0,0.00022998,2]
[312866852,1706380232739,-245.26780635,0.00022998,2]
[312866853,1706380232748,-532.21210601,0.00022998,2]
[312866854,1706380232758,-499.2718631,0.00022999,2]
[312866855,1706380232767,-337.35674075,0.00022999,2]
[312866856,1706380232777,-1022.91848257,0.00022999,2]
[312866857,1706380232789,-242.82595575,0.00022999,2]
[312866858,1706380232800,-170.85453974,0.00022999,2]
[312866859,1706380232810,-102348.42822745,0.00023,2]
[312866860,1706380232821,-13513.41105556,0.00023,2]
[312866863,1706380237434,-2358.24166973,0.00023,2]
[312866864,1706380237490,-114342.28901084,0.00023,2]
[312866865,1706380237547,-273.38853992,0.00023,2]
[312866866,1706380237657,-374.65137,0.00023,2]
[312866867,1706380237713,-2034.02217726,0.00023,2]
[312866868,1706380237774,-1700829.46264881,0.00023,2]
[312866869,1706380237784,-252.45,0.00023039,2]
[312866870,1706380237796,-150.9549228,0.00023096,2]
[312866871,1706380237805,-252.45,0.000231,2]
[312866872,1706380237814,-252.45,0.0002316,2]
[312866873,1706380237823,-166.55,0.00023182,2]
[312866874,1706380237833,-201.1,0.00023223,2]
[312866876,1706380237842,-176.61,0.00023313,2]
[312866878,1706380237851,-193.91,0.0002348,2]
[312866880,1706380237861,-353.12005712,0.00023861,2]
[312866882,1706380237871,-178.39,0.00024384,2]
[312866884,1706380237880,-1689.81,0.00024384,2]
[312866886,1706380237889,-313.02,0.00024446,2]
[312866888,1706380237898,-814.4,0.00024557,2]
[312866890,1706380237908,-201.1,0.00024593,2]
[312866892,1706380237917,-154.65,0.00024658,2]
[312866894,1706380237926,-250.0,0.00024658,2]
[312866896,1706380237936,-356.64347884,0.00024688,2]
[312866899,1706380237946,-8525.55662925,0.00024688,2]
[312866902,1706380237957,-418.27294352,0.00025,2]
[312866905,1706380237967,-550.0,0.00025,3]
[312866907,1706380237976,-193.91,0.00025124,2]
[312866911,1706380237986,-232.0,0.00025235,2]
[312866913,1706380237995,-166.55,0.000255,2]
[312866915,1706380238005,-2600.92528788,0.00025809,2]
[312866917,1706380238014,-313.02,0.0002671,2]
[312866919,1706380238023,-193.91,0.00026768,2]
[312866921,1706380238034,-600.0,0.00027,3]
[312866923,1706380238043,-814.4,0.00027286,2]
[312866925,1706380238051,-338.53595614,0.00027397,5]
[312866927,1706380238061,-316.24,0.00027671,2]
[312866929,1706380238070,-166.55,0.00027819,2]
[312866931,1706380238079,-232.0,0.00028039,2]
[312866933,1706380238088,-193.91,0.00028412,2]
[312866935,1706380238097,-316.24,0.00028695,2]
[312866937,1706380238106,-2600.92528788,0.00028718,2]
[312866939,1706380238115,-313.02,0.00028974,2]
[312866941,1706380238124,-650.0,0.00029,3]
[312866943,1706380238134,-316.24,0.00029719,2]
[312866945,1706380238142,-155.0,0.0003,2]
[312866947,1706380238152,-1794.17840074,0.0003,2]
[312866949,1706380238161,-814.4,0.00030014,2]
[312866951,1706380238170,-193.91,0.00030055,2]
[312866953,1706380238179,-166.55,0.00030137,2]
[312866955,1706380238188,-250.46,0.0003056,2]
[312866957,1706380238197,-316.24,0.00030743,2]
[312866959,1706380238206,-232.0,0.00030843,2]
[312866961,1706380238215,-700.0,0.00031,3]
[312866963,1706380238224,-313.02,0.00031238,2]
[312866965,1706380238233,-4566.04373424,0.00031285,4]
[312866967,1706380238242,-2600.92528788,0.00031627,3]
[312866969,1706380238251,-316.24,0.00031767,2]
[312866971,1706380238260,-226263.60673,0.000318,3]
[312866973,1706380238269,-157.77789167,0.00032324,2]
[312866975,1706380238278,-158.09,0.000324,2]
[312866977,1706380238287,-166.55,0.00032455,2]
[312866979,1706380238296,-814.4,0.00032743,2]
[312866981,1706380238305,-186.52,0.00032877,2]
[312866983,1706380238314,-152.79,0.00032877,15]
[312866985,1706380238323,-750.0,0.00033,3]
[312866987,1706380238332,-155.0,0.00033404,4]
[312866989,1706380238341,-153.53,0.000335,2]
[312866991,1706380238350,-153.53,0.000335,2]
[312866993,1706380238360,-153.53,0.000335,2]
[312866995,1706380238369,-153.53,0.000335,2]
[312866997,1706380238380,-153.53,0.000335,2]
[312866998,1706380238390,-153.53,0.000335,2]
[312867000,1706380238399,-153.53,0.000335,2]
[312867002,1706380238408,-153.53,0.000335,2]
[312867004,1706380238417,-153.53,0.000335,2]
[312867007,1706380238428,-153.53,0.000335,2]
[312867009,1706380238437,-153.53,0.000335,2]
[312867011,1706380238446,-153.53,0.000335,2]
[312867012,1706380238455,-153.53,0.000335,2]
[312867013,1706380238464,-153.53,0.000335,2]
[312867014,1706380238474,-153.53,0.000335,2]
[312867015,1706380238483,-313.02,0.00033502,2]
[312867016,1706380238492,-232.0,0.00033647,2]
[312867017,1706380238502,-2600.92528788,0.00034536,6]
[312867018,1706380238511,-166.55,0.00034773,2]
[312867019,1706380238520,-800.0,0.00035,3]
[312867020,1706380238530,-1741.41028306,0.00035,2]
[312867022,1706380238540,-200.0,0.00035616,2]
[312867024,1706380238549,-1689.81,0.00035616,2]
[312867026,1706380238559,-1529.68,0.000357,7]
[312867028,1706380238568,-3780.64,0.000357,7]
[312867030,1706380238577,-313.02,0.00035765,2]
[312867032,1706380238586,-306.72940004,0.0003591,5]
[312867034,1706380238595,-206.0,0.00035952,2]
[312867036,1706380238605,-152.79,0.00036613,15]
[312867038,1706380238614,-495.54090853,0.00037116,2]
[312867040,1706380238623,-1204.78221347,0.00037116,4]
[312867042,1706380238633,-2600.92528788,0.00037445,10]
[312867044,1706380238642,-380.57493366,0.00037552,15]
[312867046,1706380238652,-71882.02135353,0.00037552,15]
[312867048,1706380238662,-10018.37237623,0.00037611,15]
[312867050,1706380238671,-55555.0,0.000378,3]
[312867052,1706380238680,-164.46631998,0.00037897,2]
[312867054,1706380238689,-500.0,0.00037899,15]
[312867056,1706380238698,-498.09531665,0.00037899,15]
[312867058,1706380238707,-500.0,0.00037899,15]
[312867060,1706380238716,-500.0,0.00037899,15]
[312867062,1706380238724,-500.0,0.00037899,15]
[312867064,1706380238733,-500.0,0.00037899,15]
[312867066,1706380238742,-500.0,0.00037899,15]
[312867068,1706380238751,-500.0,0.00037899,15]
[312867070,1706380238760,-500.0,0.00037899,15]
[312867072,1706380238769,-500.0,0.00037899,15]
[312867074,1706380238778,-500.0,0.00037899,15]
[312867076,1706380238790,-478.40011116,0.00037899,15]
[312867078,1706380238799,-500.0,0.00037899,15]
[312867080,1706380238808,-500.0,0.00037899,15]
[312867082,1706380238817,-500.0,0.00037899,15]
[312867084,1706380238826,-500.0,0.00037899,15]
[312867086,1706380238835,-500.0,0.00037899,15]
[312867088,1706380238844,-500.0,0.00037899,15]
[312867090,1706380238853,-500.0,0.00037899,15]
[312867092,1706380238863,-402.3530653,0.00037899,15]
[312867093,1706380238872,-500.0,0.00037899,15]
[312867095,1706380238881,-500.0,0.00037899,15]
[312867097,1706380238890,-500.0,0.00037899,15]
[312867099,1706380238898,-500.0,0.00037899,15]
[312867101,1706380238908,-520.8227897,0.00037899,15]
[312867103,1706380238917,-311.70890566,0.00037899,15]
[312867105,1706380238926,-500.0,0.00037899,15]
[312867107,1706380238934,-500.0,0.00037899,15]
[312867109,1706380238943,-500.0,0.00037899,15]
[312867111,1706380238952,-508.13795591,0.00037899,15]
[312867113,1706380238961,-500.0,0.00037899,15]
[312867115,1706380238970,-500.0,0.00037899,15]
[312867117,1706380238979,-500.0,0.00037899,15]
[312867119,1706380238988,-500.0,0.00037899,15]
[312867121,1706380238997,-188.28931161,0.00037899,15]
[312867123,1706380239006,-500.0,0.00037899,15]
[312867125,1706380239015,-500.0,0.00037899,15]
[312867127,1706380239024,-500.0,0.00037899,15]
[312867129,1706380239035,-500.0,0.00037899,15]
[312867132,1706380239045,-500.0,0.00037899,15]
[312867133,1706380239054,-500.0,0.00037899,15]
[312867135,1706380239066,-500.0,0.00037899,15]
[312867137,1706380239075,-500.0,0.00037899,15]
[312867139,1706380239084,-500.0,0.00037899,15]
[312867142,1706380239093,-500.0,0.00037899,15]
[312867143,1706380239103,-500.0,0.00037899,15]
[312867145,1706380239112,-500.0,0.00037899,15]
[312867147,1706380239121,-500.0,0.00037899,15]
[312867150,1706380239131,-500.0,0.00037899,15]
[312867152,1706380239142,-500.0,0.00037899,15]
[312867153,1706380239151,-500.0,0.00037899,15]
[312867156,1706380239162,-500.0,0.00037899,15]
[312867158,1706380239171,-2681.52,0.000379,7]
[312867159,1706380239180,-422958.14602238,0.000379,2]
[312867173,1706380239293,-249285.17249162,0.000379,2]
[312867175,1706380239302,-158.09,0.00038,2]
[312867177,1706380239311,-158.09,0.00038,2]
[312867180,1706380239321,-313.02,0.00038029,2]
[312867182,1706380239330,-150.0,0.00038356,2]
[312867183,1706380239340,-5567.86626692,0.00038367,18]
[312867227,1706380243310,-177.17930462,0.00022939,2]
[312867228,1706380243319,-697.22242377,0.00038367,18]
[312867229,1706380243522,-10714.17494817,0.00038367,18]
[312867234,1706380244005,-273.05835925,0.00038367,18]
[312867380,1706380586304,-174.92748785,0.00022698,2]
[312867381,1706380586324,-150.0,0.00022797,2]
[312867382,1706380586343,-3652.8371,0.00022798,2]
[312867383,1706380586366,-4743.9446,0.00022798,2]
[312867384,1706380586387,-155.0,0.000228,2]
[312867385,1706380586407,-1123.29081215,0.000229,2]
[312867386,1706380974940,-150.0,0.00022899,2]
[312867387,1706380974967,-2717.79118785,0.000229,2]
[312867388,1706380974993,-216.48921933,0.000229,2]
[312867389,1706380975019,-216.48921933,0.000229,2]
[312867390,1706380975047,-216.48921933,0.000229,2]
[312867391,1706381253109,-150.0,0.00022998,2]
[312867406,1706381432076,-11351.77715904,0.00022999,2]
[312867407,1706381432086,-1682.0,0.000299,2]
[312867408,1706381432096,-2585.0,0.0003,2]
[312867409,1706381432105,-155.0,0.00030591,2]
[312867410,1706381432114,-206.0,0.00030592,2]
[312867411,1706381432123,-158.1,0.000324,2]
[312867412,1706381432132,-153.55,0.000335,2]
[312867413,1706381432141,-153.55,0.000335,2]
[312867414,1706381432150,-153.55,0.000335,2]
[312867415,1706381432160,-153.55,0.000335,2]
[312867416,1706381432169,-153.55,0.000335,2]
[312867417,1706381432178,-153.55,0.000335,2]
[312867418,1706381432187,-153.55,0.000335,2]
[312867419,1706381432199,-153.55,0.000335,2]
[312867420,1706381432209,-153.55,0.000335,2]
[312867421,1706381432219,-153.55,0.000335,2]
[312867422,1706381432228,-153.55,0.000335,2]
[312867423,1706381432237,-153.55,0.000335,2]
[312867424,1706381432246,-11700.30597492,0.00035,7]
[312867425,1706381432255,-206.0,0.00035493,11]
[312867426,1706381432264,-250.0,0.00037158,2]
[312867427,1706381432273,-499.99,0.00037158,2]
[312867428,1706381432282,-164.03,0.00037199,2]
[312867429,1706381432292,-250.0,0.0003724,2]
[312867430,1706381432301,-169.81,0.00037261,2]
[312867431,1706381432310,-1000.0,0.00037261,2]
[312867432,1706381432318,-152.79,0.00037263,15]
[312867433,1706381432327,-158.43,0.00037307,2]
[312867434,1706381432336,-2000.0,0.00037309,2]
[312867435,1706381432345,-200.0,0.00037347,2]
[312867436,1706381432354,-200.0,0.00037372,2]
[312867437,1706381432363,-150.0,0.00037494,2]
[312867438,1706381432372,-239.51,0.00037515,2]
[312867439,1706381432381,-155.47856455,0.00037617,7]
[312867440,1706381432390,-158.43,0.00037695,2]
[312867441,1706381432399,-4262.74830149,0.00037707,4]
[312867442,1706381432419,-520.93349314,0.00037707,4]
[312867446,1706381437612,-216.31820537,0.00037707,4]
[312867447,1706381437622,-6583.0127909,0.00037707,2]
[312867448,1706381437632,-9812.76354561,0.0003799,2]
[312867449,1706381437641,-1785.279,0.0003799,2]
[312867450,1706381437650,-158.1,0.00038,2]
[312867451,1706381437660,-158.1,0.00038,2]
[312867452,1706381437669,-158.43,0.00038084,2]
[312867453,1706381437679,-273.69866984,0.00038087,4]
[312867454,1706381437688,-7972.5782735,0.00038088,7]
[312867455,1706381437895,-7804.39286577,0.00038088,7]
[312867456,1706381437904,-3321.49332472,0.0003809,15]
[312867469,1706381440204,-1111.89941207,0.00038073,15]
[312867471,1706381440216,-1019.917125,0.00038073,15]
[312867483,1706381440320,-595.08841438,0.00038073,15]
[312867485,1706381440332,-1765.54480617,0.00038073,15]
[312867487,1706381440344,-909.09083909,0.00038073,15]
[312867528,1706381442846,-2715.47532609,0.00038073,15]
[312867529,1706381442855,-47376.15547168,0.0003809,15]
[312867530,1706381442865,-8606.83576064,0.0003809,15]
[312867531,1706381442874,-430.34178803,0.0003809,15]
[312867532,1706381442884,-874.5438472,0.0003814,15]
[312867533,1706381442893,-23900.0,0.00038152,2]
[312867534,1706381442903,-150.0,0.00038311,2]
[312867535,1706381442913,-150.0,0.00038356,2]
[312867536,1706381442922,-15094.58761098,0.00038367,18]
[312867537,1706381442932,-500.0,0.00038367,2]
[312867538,1706381442941,-200.0,0.00038367,2]
[312867539,1706381442950,-1895.61501734,0.00038397,18]
[312867540,1706381442959,-158.43,0.00038473,2]
[312867541,1706381442969,-2500.0,0.00038484,2]
[312867542,1706381442978,-164.03,0.00038575,2]
[312867543,1706381442987,-18424.9427,0.00038584,2]
[312867544,1706381442996,-153.55,0.000388,3]
[312867545,1706381443005,-153.55,0.000388,3]
[312867546,1706381443015,-153.55,0.000388,3]
[312867547,1706381443024,-153.55,0.000388,3]
[312867548,1706381443034,-153.55,0.000388,3]
[312867549,1706381443043,-153.55,0.000388,3]
[312867550,1706381443056,-153.55,0.000388,3]
[312867551,1706381443065,-153.55,0.000388,3]
[312867552,1706381443074,-153.55,0.000388,3]
[312867553,1706381443084,-153.55,0.000388,3]
[312867554,1706381443093,-153.55,0.000388,3]
[312867555,1706381443102,-153.55,0.000388,3]
[312867556,1706381443111,-158.43,0.00038862,2]
[312867557,1706381443120,-663.478,0.00038877,2]
[312867558,1706381443129,-948.0,0.00038877,2]
[312867559,1706381443139,-215.0,0.00038877,2]
[312867560,1706381443148,-416.249,0.00038877,2]
[312867561,1706381443157,-426.0,0.00038877,2]
[312867562,1706381443166,-250.0,0.00038877,2]
[312867563,1706381443175,-209.925,0.00038877,2]
[312867564,1706381443184,-197.0,0.00038877,2]
[312867565,1706381443194,-157.613,0.00038877,2]
[312867566,1706381443205,-218.835,0.00038877,2]
[312867567,1706381443215,-237.517,0.00038877,2]
[312867568,1706381443223,-177.0,0.00038877,2]
[312867569,1706381443232,-151.015,0.00038877,2]
[312867570,1706381443242,-156.82154347,0.0003888,2]
[312867571,1706381443251,-282.4270994,0.0003898,2]
[312867572,1706381443260,-1228.59403757,0.00039,2]
[312867573,1706381443269,-158.43,0.00039251,2]
[312867574,1706381443279,-150.0,0.00039294,2]
[312867575,1706381443289,-201.0,0.00039343,2]
[312867576,1706381443298,-150.0,0.00039484,2]
[312867577,1706381443307,-3845.70347577,0.00039802,30]
[312867578,1706381443316,-164.03,0.00039952,2]
[312867579,1706381443325,-2868.9973,0.00040255,2]
[312867580,1706381443334,-206.0,0.00040394,21]
[312867581,1706381443344,-150.0,0.00040612,2]
[312867582,1706381443353,-2473.21953422,0.0004064,4]
[312867583,1706381443362,-156.82154344,0.00041134,3]
[312867584,1706381443372,-180.0,0.0004118,2]
[312867585,1706381443381,-164.03,0.00041328,2]
[312867586,1706381443390,-247.42374992,0.00041478,4]
[312867587,1706381443399,-157.64331235,0.00041478,4]
[312867588,1706381443409,-155.0,0.00041478,4]
[312867589,1706381443417,-1000.0,0.00041598,2]
[312867590,1706381443426,-1000.0,0.000416,15]
[312867591,1706381443436,-500.0,0.000416,2]
[312867592,1706381443445,-459.96566938,0.00041618,13]
[312867593,1706381443454,-3020.30323365,0.00041698,2]
[312867594,1706381443463,-69372.4152,0.00041699,2]
[312867595,1706381443472,-49123.1788,0.00041699,2]
[312867596,1706381443481,-58013.35961599,0.000417,2]
[312867598,1706381445770,-217.75,0.00037376,2]
[312867599,1706381445780,-3580.00393955,0.0003799,2]
[312867600,1706381445829,-274.77114769,0.0003799,2]
[312867622,1706381491164,-155.0,0.00022999,2]
[312867623,1706381491184,-159.09532459,0.00022999,2]
[312867624,1706381491206,-285.90467541,0.00023,2]
[312867625,1706381499970,155.0,0.00020699,2]
[312867626,1706381513624,178.9252,0.00022899,2]
[312867627,1706381514342,-159.09532459,0.00022998,2]
[312867628,1706381514362,-440.90467541,0.00022998,2]
[312867629,1706381539184,217.0225,0.00022899,2]
[312867630,1706381556126,368.61307612,0.000229,2]
[312867631,1706381564708,220.19602871,0.000229,2]
[312867632,1706381606588,298.55360938,0.000229,2]
[312867633,1706381607792,194.58103892,0.000229,2]
[312867634,1706381625837,150.9549228,0.00022,2]
[312867635,1706381638491,4698.89477823,0.0002277,2]
[312867644,1706381869364,176.61,0.00022,2]
[312867645,1706381870662,353.12005712,0.00022548,2]
[312867673,1706382051014,-159.09532459,0.00022764,2]
[312867674,1706382051037,-155.0,0.00022765,2]
[312867675,1706382054305,155.0,0.00022763,2]
[312867676,1706382062021,130.90467541,0.00022548,2]
[312867677,1706382062051,1140.73280943,0.00022548,2]
[312867718,1706382075127,1035.27661708,0.00022548,2]
[312867719,1706382079957,467.19908809,0.00022548,2]
[312867720,1706382084079,156.32706648,0.0002,2]
[312867721,1706382093132,1030.61461632,0.00022548,2]
[312867728,1706382113659,534.50843432,0.0002,2]
[312867731,1706382123963,339.45491364,0.0002,2]
[312867732,1706382129639,534.50843432,0.0002,2]
[312867734,1706382134832,561.27829956,0.00020466,2]
[312867737,1706382145734,534.50843432,0.0002,2]
[312867744,1706382159647,534.50843432,0.0002,2]
[312867748,1706382177658,534.50843432,0.00020466,2]
[312867749,1706382181282,976.77469444,0.00021845,2]
[312867752,1706382197947,9939.55664789,0.00020466,2]
[312867754,1706382198774,3069.14587891,0.00020466,2]
[312867755,1706382199647,534.50843432,0.00020466,2]
[312867757,1706382207091,816.42272053,0.00020466,2]
[312867761,1706382219418,3518.4405472,0.00020466,2]
[312867762,1706382219655,159.78708478,0.00020466,2]
[312867763,1706382225081,807.57967891,0.00020466,2]
[312867767,1706382245081,807.57967891,0.00020466,2]
[312867768,1706382248462,854.65285225,0.00020466,2]
[312867769,1706382250459,18976.97972243,0.00020466,2]
[312867771,1706382257655,361.34078725,0.00020466,2]
[312867773,1706382266453,10287.96299394,0.00020466,2]
[312867774,1706382269147,592.34580771,0.00020466,2]
[312867775,1706382275350,363.76683121,0.00020466,2]
[312867776,1706382275373,169.60787201,0.00020466,2]
[312867847,1706382362712,1706.87134,0.00022438,2]
[312867848,1706382381537,167.64,0.00022244,2]